{"text_format":"3","workbook":"xlsx","n_sheets":2,"sheets":["טופס הצעת מחיר לבניה","סיכום עלות הצעת מחיר"],"not_rendered":{"charts":1,"images":2,"defined_names":4},"read":"whole","date_system":"1900"}

{"sheet":"טופס הצעת מחיר לבניה","index":0,"n_rows":48,"n_cols":7,"rows_kept":48,"merged":[[15,1,25,5],[29,1,31,5],[35,1,37,5],[43,1,45,5]]}
[]
[null,"טופס הצעת מחיר לבניה",{"$nulls":4}," "]
[]
[]
[null,"פרטי בעלים",null,null,"פרטי קבלן"]
[null,"שם","ערן הראל",null,"חברה","פבריקם, בע\"מ"]
[null,"כתובת","רחוב הצפצפות 123",null,"שם","צבי עמיתי"]
[null,"עיר, מיקוד","הרצליה, 98052",null,"כתובת","סמטת אלון 4567"]
[null,"טלפון","‎8885550111",null,"עיר, מיקוד","הרצליה, 98052"]
[null,"דואר אלקטרוני","eran@proseware.com",null,"טלפון","‎8885550123"]
[{"$nulls":4},"דואר אלקטרוני","tzvi@fabrikam.com"]
[null,"שם פרוייקט","מדרגות לעסק",null,"תאריך השלמה","‎41469"]
[]
[null,"היקף עבודה"]
[]
[null,"היקף הפרוייקט יתואר כאן. הקלד את כל המפרטים שברצונך לציין. זהו פרוייקט לדוגמה של בניית גרם מדרגות גדול. אנו נשתמש בעץ 2x4 ו-2x8 בלבד, וכן בתומכים, כדי לבנות את המסגרת. המדרגות ייחתכו מחומרי העץ בגודל 2x4. הברגים שבהם נשתמש לא יהיו קטנים מ-50 מ\"מ. המסמרים שבהם נשתמש לא יהיו קטנים מ- 76 מ\"מ. קיבולת העומס המרבית לכל מדרגה תהיה 226 ק\"ג. המדרגות יהיו תואמות לשאר המדרגות בבית. הקבלן אחראי על ניקוי הבית בסיום העבודה."]
{"$rows_empty":11}
[null,"לא כלול"]
[]
[null,"ללא התקנת מעקה. על בעל הבית להכין את הקרקע לעבודה ולצבוע את המדרגות בסיום העבודה."]
[]
[]
[]
[null,"הצעת החברה"]
[]
[null,"אנו, חברת פבריקם בע\"מ, מציעים לבצע את היקף העבודה הבא עד לתאריך 14/7/2011 בעלות כוללת של 476.43 ש\"ח."]
[]
[]
[]
[null,"הוגש על-ידי (נציג החברה)",{"$nulls":3},"תאריך"]
[]
[null,"אישור הבעלים"]
[]
[null,"אני, ערן הראל, מקבל את הצעת העבודה המפורטת לעיל, אשר עתידה להסתיים עד לתאריך 14/7/2011, בעלות של 476.43 ש\"ח."]
[]
[]
[]
[null,"הוגש על-ידי (בעלי הבית או נציג מיופה כח)",{"$nulls":3},"תאריך"]

{"sheet":"סיכום עלות הצעת מחיר","index":1,"n_rows":46,"n_cols":6,"rows_kept":46,"merged":[[41,3,41,4],[42,3,42,4],[43,3,43,4],[44,3,44,4],[45,3,45,4],[46,3,46,4],[47,3,47,4],[48,3,48,4]]}
[]
[null,"סיכום עלות הצעת מחיר",{"$nulls":3}," "]
[]
[]
[null,"רשימת חומרים ועלויות"]
[]
[null,"כמות","תיאור","עלות","סך הכל"," "]
[null,5,"עץ במידה של 2x8x10",{"v":6.75,"d":"₪ 6.75"},{"$f":"BidItems[עלות]*BidItems[כמות]","v":{"v":33.75,"d":"₪ 33.75"}},{"$f":"_xlfn.RANK.EQ(BidItems[[#This Row],[סך הכל]],BidItems[סך הכל])","v":4}]
[null,20,"עץ במידה של 2x4x10",{"v":4.97,"d":"₪ 4.97"},{"$f":"BidItems[עלות]*BidItems[כמות]","v":{"v":99.39999999999999,"d":"₪ 99.40"}},{"$f":"_xlfn.RANK.EQ(BidItems[[#This Row],[סך הכל]],BidItems[סך הכל])","v":2}]
[null,30,"תומכים",{"v":2.49,"d":"₪ 2.49"},{"$f":"BidItems[עלות]*BidItems[כמות]","v":{"v":74.7,"d":"₪ 74.70"}},{"$f":"_xlfn.RANK.EQ(BidItems[[#This Row],[סך הכל]],BidItems[סך הכל])","v":3}]
[null,2,"קופסת ברגים, 50 מ\"מ",{"v":6.67,"d":"₪ 6.67"},{"$f":"BidItems[עלות]*BidItems[כמות]","v":{"v":13.34,"d":"₪ 13.34"}},{"$f":"_xlfn.RANK.EQ(BidItems[[#This Row],[סך הכל]],BidItems[סך הכל])","v":6}]
[null,2,"קופסת מסמרים, 76 מ\"מ",{"v":3.25,"d":"₪ 3.25"},{"$f":"BidItems[עלות]*BidItems[כמות]","v":{"v":6.5,"d":"₪ 6.50"}},{"$f":"_xlfn.RANK.EQ(BidItems[[#This Row],[סך הכל]],BidItems[סך הכל])","v":7}]
[null,2,"זוג כפפות מעור",{"v":7.75,"d":"₪ 7.75"},{"$f":"BidItems[עלות]*BidItems[כמות]","v":{"v":15.5,"d":"₪ 15.50"}},{"$f":"_xlfn.RANK.EQ(BidItems[[#This Row],[סך הכל]],BidItems[סך הכל])","v":5}]
[null,2,"עלות עבודה",{"v":100,"d":"₪ 100.00"},{"$f":"BidItems[עלות]*BidItems[כמות]","v":{"v":200,"d":"₪ 200.00"}},{"$f":"_xlfn.RANK.EQ(BidItems[[#This Row],[סך הכל]],BidItems[סך הכל])","v":1}]
[{"$nulls":4},{"$f":"BidItems[עלות]*BidItems[כמות]","v":0},{"$f":"_xlfn.RANK.EQ(BidItems[[#This Row],[סך הכל]],BidItems[סך הכל])","v":8}]
[{"$nulls":4},{"$f":"BidItems[עלות]*BidItems[כמות]","v":0},{"$f":"_xlfn.RANK.EQ(BidItems[[#This Row],[סך הכל]],BidItems[סך הכל])","v":8}]
[{"$nulls":4},{"$f":"BidItems[עלות]*BidItems[כמות]","v":0},{"$f":"_xlfn.RANK.EQ(BidItems[[#This Row],[סך הכל]],BidItems[סך הכל])","v":8}]
[{"$nulls":4},{"$f":"BidItems[עלות]*BidItems[כמות]","v":0},{"$f":"_xlfn.RANK.EQ(BidItems[[#This Row],[סך הכל]],BidItems[סך הכל])","v":8}]
[{"$nulls":4},{"$f":"BidItems[עלות]*BidItems[כמות]","v":0},{"$f":"_xlfn.RANK.EQ(BidItems[[#This Row],[סך הכל]],BidItems[סך הכל])","v":8}]
[{"$nulls":4},{"$f":"BidItems[עלות]*BidItems[כמות]","v":0},{"$f":"_xlfn.RANK.EQ(BidItems[[#This Row],[סך הכל]],BidItems[סך הכל])","v":8}]
[{"$nulls":4},{"$f":"BidItems[עלות]*BidItems[כמות]","v":0},{"$f":"_xlfn.RANK.EQ(BidItems[[#This Row],[סך הכל]],BidItems[סך הכל])","v":8}]
[{"$nulls":4},{"$f":"BidItems[עלות]*BidItems[כמות]","v":0},{"$f":"_xlfn.RANK.EQ(BidItems[[#This Row],[סך הכל]],BidItems[סך הכל])","v":8}]
[{"$nulls":4},{"$f":"BidItems[עלות]*BidItems[כמות]","v":0},{"$f":"_xlfn.RANK.EQ(BidItems[[#This Row],[סך הכל]],BidItems[סך הכל])","v":8}]
[{"$nulls":4},{"$f":"BidItems[עלות]*BidItems[כמות]","v":0},{"$f":"_xlfn.RANK.EQ(BidItems[[#This Row],[סך הכל]],BidItems[סך הכל])","v":8}]
[{"$nulls":4},{"$f":"BidItems[עלות]*BidItems[כמות]","v":0},{"$f":"_xlfn.RANK.EQ(BidItems[[#This Row],[סך הכל]],BidItems[סך הכל])","v":8}]
[{"$nulls":4},{"$f":"BidItems[עלות]*BidItems[כמות]","v":0},{"$f":"_xlfn.RANK.EQ(BidItems[[#This Row],[סך הכל]],BidItems[סך הכל])","v":8}]
[{"$nulls":4},{"$f":"BidItems[עלות]*BidItems[כמות]","v":0},{"$f":"_xlfn.RANK.EQ(BidItems[[#This Row],[סך הכל]],BidItems[סך הכל])","v":8}]
[{"$nulls":4},{"$f":"BidItems[עלות]*BidItems[כמות]","v":0},{"$f":"_xlfn.RANK.EQ(BidItems[[#This Row],[סך הכל]],BidItems[סך הכל])","v":8}]
[{"$nulls":4},{"$f":"BidItems[עלות]*BidItems[כמות]","v":0},{"$f":"_xlfn.RANK.EQ(BidItems[[#This Row],[סך הכל]],BidItems[סך הכל])","v":8}]
[{"$nulls":4},{"$f":"BidItems[עלות]*BidItems[כמות]","v":0},{"$f":"_xlfn.RANK.EQ(BidItems[[#This Row],[סך הכל]],BidItems[סך הכל])","v":8}]
[1,{"$nulls":3},{"$f":"BidItems[עלות]*BidItems[כמות]","v":0},{"$f":"_xlfn.RANK.EQ(BidItems[[#This Row],[סך הכל]],BidItems[סך הכל])","v":8}]
[2,null,null,"סכום ביניים",{"$f":"SUBTOTAL(109,BidItems[סך הכל])","v":{"v":443.18999999999994,"d":"₪ 443.19"}},{"$f":"SUBTOTAL(103,BidItems[[ ]])","v":24}]
[3,null,null,"שיעור מס",{"v":0.075,"d":"7.50%"}]
[4,null,null,"מס",{"$f":"TaxRate*BidItems[[#Totals],[סך הכל]]","v":{"v":33.23924999999999,"d":"₪ 33.24"}}]
[5,null,null,"סה\"כ",{"$f":"Tax+BidItems[[#Totals],[סך הכל]]","v":{"v":476.4292499999999,"d":"₪ 476.43"}}]
[]
[]
[null,"פירוט חומרים ועלויות"]
[]
[]
[null,null,"סך הכל","הערות"]
[null,{"$f":"INDEX(BidItems[],MATCH(A31,BidItems[[ ]],0),2)","v":"עלות עבודה"},{"$f":"INDEX(BidItems[],MATCH(A31,BidItems[[ ]],0),4)","v":{"v":200,"d":"₪ 200.00"}}]
[null,{"$f":"INDEX(BidItems[],MATCH(A32,BidItems[[ ]],0),2)","v":"עץ במידה של 2x4x10"},{"$f":"INDEX(BidItems[],MATCH(A32,BidItems[[ ]],0),4)","v":{"v":99.39999999999999,"d":"₪ 99.40"}}]
[null,{"$f":"INDEX(BidItems[],MATCH(A33,BidItems[[ ]],0),2)","v":"תומכים"},{"$f":"INDEX(BidItems[],MATCH(A33,BidItems[[ ]],0),4)","v":{"v":74.7,"d":"₪ 74.70"}}]
[null,{"$f":"INDEX(BidItems[],MATCH(A34,BidItems[[ ]],0),2)","v":"עץ במידה של 2x8x10"},{"$f":"INDEX(BidItems[],MATCH(A34,BidItems[[ ]],0),4)","v":{"v":33.75,"d":"₪ 33.75"}}]
[null,{"$f":"INDEX(BidItems[],MATCH(A35,BidItems[[ ]],0),2)","v":"זוג כפפות מעור"},{"$f":"INDEX(BidItems[],MATCH(A35,BidItems[[ ]],0),4)","v":{"v":15.5,"d":"₪ 15.50"}}]